Cogmind - Beta 14 @@@ ROGUE MODE // 2024.11.04 @ 14:52:26 Player: Kate+Gabe4evr Result: Destroyed by D1-791(z) with Makeshift Spear Performance ------------- Evolutions (3) 1500 Regions Visited (9) 1800 Robots Destroyed (51) 255 Value Destroyed (1257) 1257 Prototype IDs (1) 20 Alien Tech Used (0) 0 Bonus (887) 887 TOTAL SCORE: 5719 Bonus ------- Follower Combat Kills 437 Aligned with FarCom 300 Met Imprinter 300 Friendly Fire -150 Cogmind --------- Core Integrity 0/700 Matter 83/300 Energy 287/300 System Corruption 18% Temperature Cool (5) Movement Walking (210) Ox1 Location -7/Zion Parts ------- > --- POWER (1) -------- (None) > --- PROPULSION (4) --- Makeshift Leg Makeshift Leg Makeshift Leg > --- UTILITY (6) ------ Disposable Heat Sink Huge Storage Unit Compact Battery Advanced Visual Processing Unit Improved Targeting Computer Armor Integrity Analyzer > --- WEAPON (2) ------- Heavy Ion Cannon Gauss Rifle > --- INVENTORY (25) --- Makeshift Power Source Makeshift Power Source Makeshift Leg Makeshift Leg Makeshift Leg Makeshift Leg Makeshift Leg Makeshift Leg Compact Wheel Large Storage Unit Advanced Terrain Scan Processor Kinecellerator Makeshift Weapon Shielding Makeshift Hacking Suite Makeshift System Shield System Restoration Module Rocket Launcher Rocket Launcher Heavy Missile Launcher Phasing Sabre Blade Trap Blade Trap Blade Trap Blade Trap Peak State ------------ > --- POWER ------------ Micro Nuclear Core > --- PROPULSION ------- Improved Carbon-fiber Leg Improved Carbon-fiber Leg Makeshift Leg Makeshift Leg > --- UTILITY ---------- Improved Cooling System Huge Storage Unit Advanced Visual Processing Unit Improved Targeting Computer Armor Integrity Analyzer Makeshift Weapon Shielding > --- WEAPON ----------- Heavy Riot Gun Heavy Riot Gun > --- INVENTORY -------- Makeshift Power Source Makeshift Power Source Makeshift Leg Makeshift Leg Compact Wheel Disposable Heat Sink Large Storage Unit Compact Battery Advanced Terrain Scan Processor Kinecellerator Makeshift System Shield System Restoration Module Beamcaster Heavy Ion Cannon Gauss Rifle Rocket Launcher Rocket Launcher Heavy Missile Launcher Phasing Sabre Blade Trap Blade Trap Blade Trap Blade Trap [Rating: 53] Favorites ----------- Power Light Angular Momentum Engine Engine Light Angular Momentum Engine Power Core Fission Core Propulsion Compact Wheel Leg Makeshift Leg Wheel Compact Wheel Utility Huge Storage Unit Device Improved Cooling System Storage Huge Storage Unit Processor Advanced Visual Processing Unit Protection Light Armor Plating Weapon Grenade Launcher Energy Gun Beamcaster Energy Cannon Heavy Ion Cannon Ballistic Gun Gauss Rifle Launcher Grenade Launcher Slashing Weapon Phasing Sabre Build | -11 -10 -10 -10 -9 -8 -7 -7 -7 -7 ------- Run | Yrd Mat Min Exi Min Mat Fac Low Low Zio Slots Evolved 6 | . . . . . 4 2 . . . Power . | . . . . . . . . . . Propulsion 2 | . . . . . 1 1 . . . Utility 4 | . . . . . 3 1 . . . Weapon . | . . . . . . . . . . Parts Attached 114 | 7 4 11 . 2 30 6 3 9 42 Power 19 | 1 . 3 . . 5 1 2 1 6 Engine 12 | 1 . 1 . . 4 . 1 1 4 Core 7 | . . 2 . . 1 1 1 . 2 Reactor . | . . . . . . . . . . Propulsion 37 | 2 . 2 . . 8 1 . 4 20 Treads . | . . . . . . . . . . Leg 19 | . . . . . . . . . 19 Wheel 18 | 2 . 2 . . 8 1 . 4 1 Hover . | . . . . . . . . . . Flight . | . . . . . . . . . . Utility 24 | 1 4 . . . 9 2 1 2 5 Device 9 | . . . . . 6 1 1 . 1 Storage 5 | 1 3 . . . . . . . 1 Processor 4 | . 1 . . . 1 1 . 1 . Hackware . | . . . . . . . . . . Protection 6 | . . . . . 2 . . 1 3 Artifact . | . . . . . . . . . . Weapon 34 | 3 . 6 . 2 8 2 . 2 11 Energy Gun 16 | 1 . 1 . 2 4 . . 2 6 Energy Cannon 3 | . . . . . 1 1 . . 1 Ballistic Gun 7 | 2 . 1 . . 2 1 . . 1 Ballistic Cannon . | . . . . . . . . . . Launcher 6 | . . 4 . . 1 . . . 1 Special Weapon . | . . . . . . . . . . Impact Weapon . | . . . . . . . . . . Slashing Weapon 2 | . . . . . . . . . 2 Piercing Weapon . | . . . . . . . . . . Special Melee Weapon . | . . . . . . . . . . Unidentified Prototypes 1 | . . . . . 1 . . . . Parts Lost 49 | . . 5 . . 19 . 1 7 17 Power 9 | . . 1 . . 3 . . . 5 Propulsion 18 | . . 2 . . 6 . . 5 5 Utility 10 | . . . . . 4 . 1 2 3 Weapon 12 | . . 2 . . 6 . . . 4 Highest Loss Streak 8 | . . 4 . . 7 . 1 5 8 To Critical Strikes . | . . . . . . . . . . Average Slot Usage (%) 85 | . 93 89 85 98 85 99 99 88 78 Engine 4 | . 14 3 . . 1 . 4 5 6 Core 4 | . . 10 14 14 6 7 2 1 . Leg 3 | . . . . . . . . . 8 Wheel 19 | . 28 24 28 28 25 30 30 19 10 Device 6 | . . . . . 14 15 15 9 6 Storage 9 | . 14 14 14 14 9 7 7 7 8 Processor 17 | . 7 14 14 14 9 14 15 20 23 Protection 3 | . . . . . 1 7 7 6 4 Energy Gun 5 | . 14 4 . 24 9 2 . 10 3 Energy Cannon 1 | . . . . . 1 4 7 2 1 Ballistic Gun 3 | . 14 4 . . 6 7 7 2 1 Launcher 3 | . . 13 14 2 . . . . . Peak Build Rating 53 | 6 8 14 15 23 33 37 39 43 53 Average Rating 31 | 4 7 11 14 21 27 34 36 38 42 On Entrance 20 | . 6 8 13 15 23 28 37 36 41 Naked Turns . | . . . . . . . . . . Heaviest Build 113 | 12 87 96 93 99 106 110 113 111 103 Greatest Support 80 | 26 26 26 26 26 44 52 52 60 80 Greatest Overweight (x) 6 | . 3 5 3 3 6 2 2 6 5 Average Overweight (x) 2 | . 1 3 3 3 2 1 1 2 1 Largest Inventory Capacity 25 | 8 25 25 25 25 25 25 25 25 25 Average Capacity 24 | 6 15 25 25 25 25 25 25 25 25 Most Carried 25 | 2 7 20 22 23 25 25 25 25 25 Average Carried 21 | 1 4 13 20 22 23 24 24 24 23 Final Capacity 25 | 8 25 25 25 25 25 25 25 25 25 Final Carried 25 | 2 7 19 22 23 24 25 24 25 24 Class Distribution -------------------- 63% | Mutant 36% | Scavenger-Mutant Dominant Class ---------------- Mutant | -10/Materials Mutant | -10/Mines Mutant | -10/Exiles Scavenger-Mutant | -9/Mines Scavenger-Mutant | -8/Materials Scavenger-Mutant | -7/Factory Scavenger-Mutant | -7/Lower Caves Mutant | -7/Lower Caves Mutant | -7/Zion Resources | -11 -10 -10 -10 -9 -8 -7 -7 -7 -7 ----------- Run | Yrd Mat Min Exi Min Mat Fac Low Low Zio Matter Collected 1661 | 235 84 305 . 30 322 60 81 126 418 Remotely . | . . . . . . . . . . Salvage Created 1826 | . 26 278 . . 518 . 22 159 823 Parts 118 | . 2 15 . . 23 . 1 15 62 Haulers Intercepted . | . . . . . . . . . . Recyclers Shooed . | . . . . . . . . . . Parts Field Recycled . | . . . . . . . . . . Retrieved Matter . | . . . . . . . . . . Parts Self-Destructed 20 | . . . . . . . 5 15 . Prevented . | . . . . . . . . . . Kills | -11 -10 -10 -10 -9 -8 -7 -7 -7 -7 ------- Run | Yrd Mat Min Exi Min Mat Fac Low Low Zio Combat Hostiles Destroyed 35 | . . 13 . . 12 . 1 9 . Guns 24 | . . 5 . . 11 . . 8 . Cannons 3 | . . . . . 1 . 1 1 . AOE 8 | . . 8 . . . . . . . Classes Destroyed 11 | . 1 5 . . 2 . . 1 2 Recycler 1 | . . 1 . . . . . . . Watcher 1 | . 1 . . . . . . . . Swarmer 12 | . . 1 . . 2 . 1 8 . Grunt 11 | . . 4 . . 7 . . . . Duelist 1 | . . . . . 1 . . . . Sentry 3 | . . . . . 3 . . . . Demolisher 1 | . . 1 . . . . . . . Programmer 1 | . . . . . . . . 1 . Zionite 37 | . . . . . . . . . 37 Tinkerer 5 | . . . . . . . . . 5 Assembled 7 | . . 7 . . . . . . . Best Kill Streak 6 | . 1 4 . . 3 . 1 4 6 Combat Bots Only 4 | . . 4 . . 3 . 1 4 . Max Kills in Single Turn 3 | . 1 2 . . 1 . 1 1 3 Gunslinging . | . . . . . . . . . . Exploded 2 | . . 2 . . . . . . . Melee . | . . . . . . . . . . Uniques/NPCs Destroyed . | . . . . . . . . . . Combat | -11 -10 -10 -10 -9 -8 -7 -7 -7 -7 -------- Run | Yrd Mat Min Exi Min Mat Fac Low Low Zio Hostile Shots Fired 388 | . . 30 . . 116 . 8 44 190 Missed 120 | . . 8 . . 32 . 5 9 66 Damage Taken 5119 | . . 630 . . 1367 . 63 530 2529 Core 1090 | . . 194 . . 184 . . 59 653 Absorbed by Shields . | . . . . . . . . . . Redirected to Shielding 14 | . . . . . . . . . 14 Core Remaining (%) 62 | 100 . . . 22 66 . . . . Volleys Fired 222 | . 3 31 . . 45 . 9 23 111 Largest 2 | . 2 2 . . 2 . 2 2 2 Hottest 150 | . 70 70 . . 150 . 93 130 150 Shots Fired 419 | . 6 57 . . 87 . 18 46 205 Gun 306 | . 6 41 . . 69 . 9 37 144 Cannon 95 | . . . . . 18 . 9 9 59 Launcher 18 | . . 16 . . . . . . 2 Special . | . . . . . . . . . . Kinetic 113 | . 3 22 . . 25 . 9 9 45 Thermal 237 | . 3 19 . . 50 . 9 37 119 Explosive 18 | . . 16 . . . . . . 2 Electromagnetic 51 | . . . . . 12 . . . 39 Robot Hit Streak 11 | . 2 9 . . 11 . 4 6 11 Robot Miss Streak 6 | . 1 3 . . 3 . 4 6 4 Penetration Max . | . . . . . . . . . . Secondary Targets 7 | . . 1 . . . . . 3 3 Max Gunslinging Chain 1 | . . 1 . . . . . 1 1 Shots Hit Robots 261 | . 3 34 . . 61 . 7 32 124 Core Hits 140 | . 2 23 . . 25 . 1 39 50 Critical Kills 2 | . . . . . . . . . 2 Critical Parts Destroyed . | . . . . . . . . . . Critical Strikes 9 | . . 1 . . 1 . . . 7 Burn 7 | . . 1 . . 1 . . . 5 Meltdown 1 | . . . . . . . . . 1 Destroy 1 | . . . . . . . . . 1 Melee Attacks 64 | . . . . . . . . . 64 Impact . | . . . . . . . . . . Slashing 64 | . . . . . . . . . 64 Piercing . | . . . . . . . . . . Sneak Attacks . | . . . . . . . . . . Combat Hostiles . | . . . . . . . . . . Follow-up Attacks . | . . . . . . . . . . Damage Inflicted 5468 | . 38 879 . . 1345 . 170 403 2633 Guns 3391 | . 38 393 . . 1039 . 54 375 1492 Cannons 1290 | . . . . . 275 . 116 28 871 Explosions 605 | . . 475 . . . . . . 130 Melee 140 | . . . . . . . . . 140 Ramming 42 | . . 11 . . 31 . . . . Kinetic 1111 | . 26 207 . . 425 . 54 40 359 Thermal 3237 | . 12 186 . . 786 . 116 363 1774 Explosive 475 | . . 475 . . . . . . . Electromagnetic 463 | . . . . . 103 . . . 360 Impact . | . . . . . . . . . . Slashing 140 | . . . . . . . . . 140 Piercing . | . . . . . . . . . . Highest Corruption 18 | . . . . . . . . 1 18 Average Corruption 5 | . . . . . . . . 1 6 Corruption Purged . | . . . . . . . . . . Corruption Blocked . | . . . . . . . . . . Effects 39 | . . . . . . . . 3 36 Message Errors 10 | . . . . . . . . . 10 Matter Fused 12 | . . . . . . . . 3 9 Heat Flow Errors 2 | . . . . . . . . . 2 Energy Discharges 4 | . . . . . . . . . 4 Parts Rejected 1 | . . . . . . . . . 1 Data Loss (minor) 5 | . . . . . . . . . 5 Misfires 2 | . . . . . . . . . 2 Alerts 1 | . . . . . . . . . 1 Weapon Failures 2 | . . . . . . . . . 2 Overload Shots . | . . . . . . . . . . Overflow Damage 140 | . . 56 . . 1 . 3 . 80 Projectiles 3 | . . . . . . . 3 . . Explosions 56 | . . 56 . . . . . . . Melee 81 | . . . . . 1 . . . 80 Knockbacks 1 | . . 1 . . . . . . . Impact 1 | . . 1 . . . . . . . Kinetic . | . . . . . . . . . . Secondary . | . . . . . . . . . . Self-Inflicted Damage 191 | . . 38 . . 15 . . . 138 Shots 5 | . . 2 . . . . . . 3 Rammed 2 | . . 1 . . 1 . . . . Targets Rammed 2 | . . 1 . . 1 . . . . Kicked . | . . . . . . . . . . Crushed . | . . . . . . . . . . Highest Temperature 350 | . 27 102 . . 189 . . . 350 Average Temperature 65 | . 14 34 . . 77 . . . 74 Received Heat Transfer 1009 | . . 120 . . 564 . . . 325 Effects 3 | . . . . . . . . . 3 Interference 3 | . . . . . . . . . 3 Siege Activations . | . . . . . . . . . . Robots Corrupted . | . . . . . . . . . . Combat Hostiles . | . . . . . . . . . . Parts Fried 1 | . . . . . . . . . 1 Impact Corruptions 1 | . . . . . 1 . . . . Robots Melted 1 | . . . . . . . . . 1 Combat Hostiles . | . . . . . . . . . . Parts Melted 11 | . . 1 . . 3 . . 2 5 Heat Transferred 5693 | . 37 629 . . 1369 . 148 447 3063 Parts Sabotaged . | . . . . . . . . . . Parts Stolen 1 | . . . . . . . 1 . . Parts Stripped . | . . . . . . . . . . Power Chain Reactions 2 | . . . . . . . . . 2 Alert | -11 -10 -10 -10 -9 -8 -7 -7 -7 -7 ------- Run | Yrd Mat Min Exi Min Mat Fac Low Low Zio Peak Influence 255 | . 37 103 . . 255 23 . . . Initial 23 | . . 14 . . . 23 . . . Average 61 | . 25 40 . . 133 23 . . . Maximum Alert Level 1 | . . . . . 1 . . . . Low Security (%) 95 | 100 100 100 . 100 84 100 . . . Level 1 4 | . . . . . 15 . . . . Level 2 . | . . . . . . . . . . Level 3 . | . . . . . . . . . . Level 4 . | . . . . . . . . . . Level 5 . | . . . . . . . . . . High Security . | . . . . . . . . . . Max Security . | . . . . . . . . . . Squads Dispatched 6 | . . . . 1 5 . . . . Investigation 1 | . . . . 1 . . . . . Extermination . | . . . . . . . . . . Reinforcement 2 | . . . . . 2 . . . . Assault . | . . . . . . . . . . Garrison 3 | . . . . . 3 . . . . Intercept . | . . . . . . . . . . Searches Triggered . | . . . . . . . . . . Construction Impeded . | . . . . . . . . . . Haulers Reinforced . | . . . . . . . . . . Active Scanning Responses . | . . . . . . . . . . Cargo Convoy Interrupts . | . . . . . . . . . . Stealth | -11 -10 -10 -10 -9 -8 -7 -7 -7 -7 --------- Run | Yrd Mat Min Exi Min Mat Fac Low Low Zio Distress Signals . | . . . . . . . . . . Communications Jammed 11 | . . . . . 11 . . . . Distress Signals 11 | . . . . . 11 . . . . Times Spotted 159 | . 2 28 . . 36 . 8 10 75 Peak Tracking Total 8 | . 1 8 . . 6 . 3 4 8 Tactical Retreats 8 | . . 1 . . 3 . . 1 3 Traps | -11 -10 -10 -10 -9 -8 -7 -7 -7 -7 ------- Run | Yrd Mat Min Exi Min Mat Fac Low Low Zio Traps Triggered 1 | . . . . . . 1 . . . Indirectly . | . . . . . . . . . . Trap Hack Attempts . | . . . . . . . . . . Triggered . | . . . . . . . . . . Disarmed . | . . . . . . . . . . Reprogrammed . | . . . . . . . . . . Reused . | . . . . . . . . . . Traps Extracted . | . . . . . . . . . . Installed . | . . . . . . . . . . Triggered . | . . . . . . . . . . Most Traps Carried 4 | . . 4 4 4 4 4 4 4 4 Machines | -11 -10 -10 -10 -9 -8 -7 -7 -7 -7 ---------- Run | Yrd Mat Min Exi Min Mat Fac Low Low Zio Machines Disabled 5 | . . 1 . . 1 . . . 3 Max in Single Turn 1 | . . 1 . . 1 . . . 1 Machines Repaired . | . . . . . . . . . . Machines Dismantled . | . . . . . . . . . . Machines Sabotaged . | . . . . . . . . . . Overloaded Fab Kills . | . . . . . . . . . . Hacking | -11 -10 -10 -10 -9 -8 -7 -7 -7 -7 --------- Run | Yrd Mat Min Exi Min Mat Fac Low Low Zio Machines Accessed 3 | . . . 1 1 1 . . . . Terminals 1 | . . . . . 1 . . . . Fabricators . | . . . . . . . . . . Repair Stations . | . . . . . . . . . . Recycling Units . | . . . . . . . . . . Scanalyzers . | . . . . . . . . . . Garrison Access . | . . . . . . . . . . Total Hacks 11 | . . . 7 1 3 . . . . Successful 9 | . . . 7 1 1 . . . . Failed 2 | . . . . . 2 . . . . Catastrophic . | . . . . . . . . . . Database Lockouts . | . . . . . . . . . . Manual 5 | . . . 1 . 3 . . . 1 Terminals 3 | . . . . . 3 . . . . Fabricators . | . . . . . . . . . . Repair Stations . | . . . . . . . . . . Recycling Units . | . . . . . . . . . . Scanalyzers . | . . . . . . . . . . Garrison Access . | . . . . . . . . . . Terminal Hacks 8 | . . . 7 1 . . . . . Record 7 | . . . 7 . . . . . . Open Door 1 | . . . . 1 . . . . . Fabricator Hacks . | . . . . . . . . . . Repair Station Hacks . | . . . . . . . . . . Recycling Unit Hacks . | . . . . . . . . . . Scanalyzer . | . . . . . . . . . . Garrison Access Hacks . | . . . . . . . . . . Unauthorized Hacks 1 | . . . . . 1 . . . . Terminals 1 | . . . . . 1 . . . . Botnet 1 | . . . . . 1 . . . . Fabricators . | . . . . . . . . . . Repair Stations . | . . . . . . . . . . Recycling Units . | . . . . . . . . . . Scanalyzers . | . . . . . . . . . . Garrison Access . | . . . . . . . . . . Data Cores Recovered 1 | . . . . . 1 . . . . Used 1 | . . . . . 1 . . . . Hacking Detections 1 | . . . . . 1 . . . . Full Trace Events . | . . . . . . . . . . Feedback Events . | . . . . . . . . . . Feedback Blocked . | . . . . . . . . . . Robot Schematics Acquired . | . . . . . . . . . . Robots Built . | . . . . . . . . . . Authchips . | . . . . . . . . . . Time . | . . . . . . . . . . Total Robot Build Rating . | . . . . . . . . . . Part Schematics Acquired . | . . . . . . . . . . Parts Built . | . . . . . . . . . . Authchips . | . . . . . . . . . . Time . | . . . . . . . . . . Total Part Build Rating . | . . . . . . . . . . Parts Repaired . | . . . . . . . . . . Time . | . . . . . . . . . . Parts Recycled . | . . . . . . . . . . Recycled Matter . | . . . . . . . . . . Retrieved Matter . | . . . . . . . . . . Retrieved Components . | . . . . . . . . . . Parts Scanalyzed . | . . . . . . . . . . Part Schematics Acquired . | . . . . . . . . . . Parts Damaged . | . . . . . . . . . . Bothacking | -11 -10 -10 -10 -9 -8 -7 -7 -7 -7 ------------ Run | Yrd Mat Min Exi Min Mat Fac Low Low Zio Used RIF Installer . | . . . . . . . . . . Robots Hacked . | . . . . . . . . . . Non-combat . | . . . . . . . . . . Combat . | . . . . . . . . . . Robot Hacks Applied . | . . . . . . . . . . Relay Couplers Released . | . . . . . . . . . . Fabnet Peak Effective % . | . . . . . . . . . . Robots Rewired . | . . . . . . . . . . Allies Hacked . | . . . . . . . . . . Hacks Repelled . | . . . . . . . . . . Allies | -11 -10 -10 -10 -9 -8 -7 -7 -7 -7 -------- Run | Yrd Mat Min Exi Min Mat Fac Low Low Zio Total Allies 9 | . . 4 . . . 3 . . 2 Largest Group 3 | . . 3 3 3 3 3 3 1 2 Highest-Rated Group 192 | . . 40 40 40 40 93 93 28 192 Highest-Rated Ally 96 | . . 31 16 16 16 31 31 28 96 Total Orders . | . . . . . . . . . . Ally Attacks 182 | . . 14 . . 32 . 28 . 108 Total Damage 5464 | . . 167 . . 370 . 335 . 4592 Kills 48 | . . . . . 4 . 6 . 38 Allies Corrupted . | . . . . . . . . . . Allies Melted 1 | . . . . . . . . . 1 Turrets Deployed 3 | . . . . . . . . . 3 Intel | -11 -10 -10 -10 -9 -8 -7 -7 -7 -7 ------- Run | Yrd Mat Min Exi Min Mat Fac Low Low Zio Robot Analysis Total . | . . . . . . . . . . Derelict Logs Recovered 4 | . . 1 . 1 . . . 1 1 Drone Launches . | . . . . . . . . . . Drone Recoveries . | . . . . . . . . . . Exploration | -11 -10 -10 -10 -9 -8 -7 -7 -7 -7 ------------- Run | Yrd Mat Min Exi Min Mat Fac Low Low Zio Turns Passed 7878 | 46 158 1197 538 252 817 253 611 705 3301 Spaces Moved 4642 | 38 133 696 397 179 455 202 480 462 1600 Core 1 | 1 . . . . . . . . . Treads . | . . . . . . . . . . Legs 325 | . . . . . . . . . 325 Wheels 4316 | 37 133 696 397 179 455 202 480 462 1275 Hover . | . . . . . . . . . . Flight . | . . . . . . . . . . Fastest Speed 50 | 50 90 135 135 135 111 105 105 115 130 Average Speed 134 | 90 106 143 135 135 121 113 119 130 146 Slowest Speed 470 | 100 135 175 135 135 190 120 120 190 470 Overloaded Moves . | . . . . . . . . . . Propulsion Burnouts . | . . . . . . . . . . Robots Hopped 1 | . . . . . . . . . 1 Cave-ins Triggered . | . . . . . . . . . . Exploration Rate (%) 54 | 3 28 98 92 51 46 8 66 60 91 Regions Visited 9 Branch Regions 6 Pre-discovered Areas 5 | . . 2 . . . . . . 3 Known Exits Taken . | . . . . . . . . . . Unknown Exits Taken 9 | 1 1 1 1 1 1 1 1 1 . Scrap Searched 12 | . . 1 . 1 . . 1 5 4 Spaces Dug 15 | . . . . . . . . . 15 Terrain Destroyed 118 | . . 89 . . 6 . 2 3 18 Melee 15 | . . . . . . . . . 15 Projectile 12 | . . . . . 6 . 2 3 1 AOE 91 | . . 89 . . . . . . 2 Terrain Rammed . | . . . . . . . . . . Walls Destroyed . | . . . . . . . . . . Machines Disabled . | . . . . . . . . . . Actions | -11 -10 -10 -10 -9 -8 -7 -7 -7 -7 --------- Run | Yrd Mat Min Exi Min Mat Fac Low Low Zio Total 5742 | 47 142 831 399 188 628 228 500 519 2260 Wait 612 | . . 78 . 7 83 10 5 16 413 Move 4631 | 37 132 695 396 178 454 201 479 461 1598 Hop 1 | . . . . . . . . . 1 Pick Up 57 | 2 2 14 3 1 11 5 2 6 11 Fast Attach 34 | 6 2 1 . 1 11 2 . 2 9 Attach 45 | 1 . 3 . . 14 2 2 4 19 Detach 9 | 1 1 . . . 1 . . 1 5 Swap 36 | . 2 7 . 1 6 2 1 3 14 Drop 25 | . . 1 . . 2 6 2 3 11 Fire 222 | . 3 31 . . 45 . 9 23 111 Melee 64 | . . . . . . . . . 64 Ram 2 | . . 1 . . 1 . . . . Kick . | . . . . . . . . . . Crush . | . . . . . . . . . . Escape Stasis . | . . . . . . . . . . Rewire 4 | . . . . . . . . . 4 Trap . | . . . . . . . . . . Miscellaneous . | . . . . . . . . . . Route ------- -11/Scrapyard -10/Materials -10/Mines (discovered 3 exits: [*Mat x2] / *Exi) -10/Exiles (discovered 2 exits: *Min x2) -9/Mines -8/Materials -7/Factory -7/Lower Caves -7/Lower Caves -7/Zion (discovered 1 exit: [*Pro]) History --------- Turn | Location | Event 9 | -11/Scrapyard | Discovered new exit (range 15) 47 | -11/Scrapyard | Entered Materials 183 | -10/Materials | Discovered new exit (range 6) 205 | -10/Materials | Entered Mines 209 | -10/Mines | Met a Derelict bent on vengeance 270 | -10/Mines | Escorted by a lone wolf Derelict 290 | -10/Mines | Learned location of Storage (-7) 305 | -10/Mines | Build established: Mutant 464 | -10/Mines | Assembled infested the area 469 | -10/Mines | Assisted by a Guerilla fighting off Assembled 575 | -10/Mines | Core integrity fell below 50% 613 | -10/Mines | Lost 4 parts (1p2n1w) 642 | -10/Mines | Received a Rocket Launcher from a helpful Derelict 749 | -10/Mines | Found a hidden stash of uninstalled traps 857 | -10/Mines | Discovered new exit (range 14) 866 | -10/Mines | Assisted by bots powering up and referring to "LRC-V3" 1091 | -10/Mines | Deemed a non-threat by the Exiles lab entrance 1093 | -10/Mines | Discovered new exit (range 5) 1284 | -10/Mines | Discovered new exit (range 6) 1402 | -10/Mines | Entered Exiles 1402 | -10/Exiles | Accompanied by 3 allies 1420 | -10/Exiles | Discovered new exit (range 17) 1435 | -10/Exiles | Met 8R-AWN 1458 | -10/Exiles | Met EX-HEX 1497 | -10/Exiles | Met EX-BIN 1516 | -10/Exiles | Aligned with FarCom system 1517 | -10/Exiles | Given EX-Vault access code 1579 | -10/Exiles | Opened EX-Vault 1586 | -10/Exiles | Found Deploy-a-Sentry 1588 | -10/Exiles | Found Deploy-a-Sentry 1591 | -10/Exiles | Found Deploy-a-Sentry 1620 | -10/Exiles | Warned to stay clear of 0b10 Research branches 1693 | -10/Exiles | Met EX-DEC 1722 | -10/Exiles | Visited The Gauntlet 1925 | -10/Exiles | Discovered new exit (range 14) 1940 | -10/Exiles | Left Exiles lab with Deploy-a-Sentry 1940 | -10/Exiles | Entered Mines 1940 | -9/Mines | Accompanied by 3 allies 1955 | -9/Mines | Learned Materials stockpile data 1967 | -9/Mines | Met a Derelict shopkeep closing up shop 2077 | -9/Mines | Discovered new exit (range 12) 2192 | -9/Mines | Entered Materials 2192 | -8/Materials | Accompanied by 3 allies 2192 | -8/Materials | Evolved 4 slots: Propulsion x1, Utility x3 2270 | -8/Materials | Garrison activated, responded to threat 2279 | -8/Materials | Build established: Scavenger-Mutant 2663 | -8/Materials | Lost 7 parts (2p2u3w) 2749 | -8/Materials | Lost 3 parts (1p2n) 2808 | -8/Materials | Lost 3 parts (1n2u) 2884 | -8/Materials | Lost 3 parts (2n1w) 2919 | -8/Materials | Discovered new exit (range 20) 3009 | -8/Materials | Entered Factory 3009 | -7/Factory | Evolved 2 slots: Propulsion x1, Utility x1 3079 | -7/Factory | Allied Derelicts emerged from ambush trap array 3247 | -7/Factory | Discovered new exit (range 8) 3262 | -7/Factory | Entered Lower Caves 3262 | -7/Lower Caves | Accompanied by 3 allies 3749 | -7/Lower Caves | Discovered new exit (range 4) 3873 | -7/Lower Caves | Entered another Lower Caves area 3873 | -7/Lower Caves | Accompanied by 1 ally 3874 | -7/Lower Caves | Encountered a Warlord checkpoint 4142 | -7/Lower Caves | Lost 5 parts (4n1u) 4383 | -7/Lower Caves | Build established: Mutant 4442 | -7/Lower Caves | Discovered new exit (range 19) 4468 | -7/Lower Caves | Learned 4 Factory zone layouts 4578 | -7/Lower Caves | Entered Zion 4725 | -7/Zion | Discovered new exit (range 12) 4756 | -7/Zion | System corruption cleaned by Quarantine Array 4952 | -7/Zion | Given A8's code to call for help 5097 | -7/Zion | Learned location of 1 exit from Factory 5409 | -7/Zion | Learned location of Armory (-3) 5843 | -7/Zion | Warned about damaging Zion machinery 6230 | -7/Zion | Rebuked by Imprinter 6255 | -7/Zion | Attempted to imprint without authorization 6255 | -7/Zion | Attacked by Zionites 6272 | -7/Zion | DAS Turret deployed 6278 | -7/Zion | DAS Turret deployed 6298 | -7/Zion | DAS Turret deployed 7132 | -7/Zion | Core integrity fell below 50% 7199 | -7/Zion | Build established: Scavenger-Mutant 7298 | -7/Zion | System corruption reached 10% 7334 | -7/Zion | Lost 8 parts (1p3n1u3w) 7375 | -7/Zion | Core integrity fell below 20% 7607 | -7/Zion | Enhanced Grunt warped into view, answering call for help 7612 | -7/Zion | Enhanced Grunt warped into view, answering call for help 7879 | -7/Zion | Destroyed by D1-791(z) with Makeshift Spear Last Messages --------------- 07839_ Chain reaction triggered in Mak. Power Source. 07839_ 3R-HNG(z) destroyed. 07840_ 2S-D3E(z) destroyed. 07842_ 9A-43S(z) destroyed. 07843_ 09-BQB(z) destroyed. 07843_ Slug penetrates Twisted Machinery. 07847_ 38-2VV(z) destroyed. RU-N14: "Time for a live test!" RU-N14 pulls out a set of special claymores. 07855_ %FZ>H%SKOCOKF8JOZF4PN5Q=0FBOTMTKG,FF8CG 07864_ D1-791(z) pulls a Mak. Spear out of the Twisted Machinery. 07871_ CM-CWL(z) pulls a Mak. Shrapnel Gun out of the Twisted Machinery. 07874_ Slug penetrates RU-N14. 07874_ Destroyed Gravmag System. 07876_ D1-791(z) pulls a Mak. Spear out of the Twisted Machinery. 07876_ Enhanced Grunt destroyed. 07876_ Mak. Power Source destroyed. 07876_ Mak. Leg destroyed. 07877_ RU-N14 suffers critical hit (Destroy). 07877_ RU-N14 destroyed. Map ----- +----------------------------------------------------+ | #"#?????????????##"" ##"""" """#"##????? | | #?????????????#"""" # # " """""#????? | | ################" ""# ""#?????? | | #""""""""#"""""#"" """" """"#?????? | | """""""" """#""""###" """" """"#??????? | | """#"" """"" """"" """ """"#??????? | | ##"" ""#"" ""#??????? | | "#"" "#""" ""#??????? | | =%"#""" %"""""" """" "" ""##??????? | | =%%= ! """" """ """##?????? | | =*!! !! "" "" "" """"#?????? | | " ! *%== """ """" """ """#?????? | | " ]=*%!"""" """" """ ""##????? | | */== """ """" """ """#????? | | = ! [ "" """""" ""##????? | | =% =% """ """" ""##????? | | %=%= % """" """ """#????? | | " """ ==[ """" "" ""##????? | | """ """"" ""%"" """" "" "##?????? | | """#"""#"""" """" "" ""#?????? | | "########## ""#" """ """#?????? | | """" "#???????# """" """" ""#"#?????? | | """"" ""#???????# %* """ "#" "#"##?????? | | ##""""""""#???????# """ """ ""###?????? | | ##"#"#""#"#????????# """ "" ""#"#?????? | | ?##########????????# @] """ " ""#??????? | | ??????????????????# z!% ""#??????? | | ??????????????????# " ! "##??????? | | ??????????????????# #"" " ""#??#####? | | ?????????????########"#" ""#??# "## | | ?????????????"||"# """ ##?# """ | | ?????????????"||"# """" "#"### """ | | ?????????????" " " """" """# | | ?????????????#" # """""z | | ?????????????#""""# """ | | ?????????????##""## """# | | ??????????????###### ""### """ | | ???????????????????### "" ""#?# """ | | ????????????????????#" """" """ "##?# "## | | ###?????????????????##" z """" """ """#?#####? | | # ###????????????????#"" """""#" """"#??????? | | ! ! #????????????????""" "#"""" """##??????? | | ! !#????????????????#"" ####"" ""#"???????? | | " "####??????????????##" #####"" """"???????? | | #""##?????????????##" ""##""#"" "????????? | | " ""##?##?####???##"" """""""" "????????? | | ""###"##""#####""" """"""" ""????????? | | "" ##"##"""""""#"#"" " "" ""????????? | | "" ""#"" """"#"" """????????? | | """" """"#" " """"#????????? | +----------------------------------------------------+ Best States ------------- Heat Dissipation 75 Coolant Potential 50 Energy Generation 18 Energy Capacity 370 Matter Stores 300 Matter Capacity 300 Sight Range 20 Robot Scan Range 14 Terrain Scan Density 10 Jamming Range 12 Armor Coverage 225 Resistance: EM 15 Weapon Shielding 15 Evasion (%) 42 Targeting Accuracy 6 Armor Integrity Analysis 30 Particle Charging 15 Item Schematics ----------------- None Robot Schematics ------------------ None Fabricated ------------ Nothing Alien Tech Used ----------------- None Achievements -------------- Monster Challenges ------------ None Game ------ Seed CatalystScrapDevice Manual? 0 Play Time 00:53:10 Cumulative 61.2 hours Start 2024.11.02 @ 23:55:52 End 2024.11.04 @ 14:52:26 Sessions 3 Manual Loads 0 Difficulty Rogue Special Mode None Game No. 113 Rogue 113 Adventurer 0 Explorer 0 Win Type - Total 1 Types 1/0/0/0/0/0/0/0/0 Lore% 48 Gallery% 53 Achievement% 44 Wizard Run 0 Options --------- Layout 0 ASCII 0 Keyboard 1 Movement Numpad Keybinds 0 Fullscreen 2 Font 24/Terminus Map View 76x50 Zoom Use 0% Tactical HUD 1 Map Filters NONE Filters NONE Steam 1 RUN: 1d29548c-4514-4c16-ab6a-31acff799627